Cogmind - Beta 15 @@@ ROGUE MODE // 2025.06.28 @ 21:58:00 Player: saltine Result: Escaped! Performance ------------- Evolutions (9) 4500 Regions Visited (21) 4200 Robots Destroyed (305) 1525 Value Destroyed (14820) 14820 Prototype IDs (50) 1000 Alien Tech Used (0) 0 Bonus (14448) 14448 TOTAL SCORE: 40493 Bonus ------- Triggered High Security 500 High Alert Combat Kills 4122 Follower Combat Kills 2652 Entered Garrisons 1000 Used RIF Installer 2500 Entered DSFs 500 Aligned with FarCom 300 Win 3000 Friendly Fire -126 Cogmind --------- Core Integrity 536/1600 Matter 253/300 Energy 98/100 System Corruption 23% Temperature Cool (0) Movement Core (50) Location To Epsilon Eridani Parts ------- > --- POWER (2) -------- (None) > --- PROPULSION (8) --- (None) > --- UTILITY (9) ------ Advanced Signal Interpreter Experimental Targeting Computer Hacking Suite Authchip [R/Combat] Relay Coupler [NC] (26) > --- WEAPON (6) ------- (None) > --- INVENTORY (5) ---- Experimental Sensor Array Peak State ------------ > --- POWER ------------ Micro Antimatter Reactor > --- PROPULSION ------- Heavy Armored Exoskeleton Heavy Armored Exoskeleton > --- UTILITY ---------- Experimental Sensor Array Experimental Targeting Computer Experimental Core Analyzer Improved Phase Shifter Centrium Light Armor Plating Hacking Suite Authchip [R/Combat] Authchip [R/Combat] Relay Coupler [NC] > --- WEAPON ----------- Quantum Rifle Longsword +1 > --- INVENTORY -------- Heavy Armor Plating [Rating: 141] Favorites ----------- Power Improved Ion Engine Engine Improved Ion Engine Power Core Light Nuclear Core Reactor Cold Fusion Reactor Propulsion Light Treads Treads Light Treads Leg Heavy Armored Exoskeleton Wheel Armored Wheel Utility Huge Storage Unit Device Advanced Cooling System Storage Huge Storage Unit Processor Experimental Targeting Computer Hackware Relay Coupler [NC] Protection Medium Armor Plating Weapon Improved Assault Rifle Energy Gun Advanced Beam Rifle Energy Cannon Phase Cannon Ballistic Gun Improved Assault Rifle Ballistic Cannon Heavy Assault Cannon Launcher Heavy Rocket Launcher Special Weapon Remote Datajack Slashing Weapon Longsword +1 Special Melee Weapon Datajack Build | -11 -10 -10 -9 -9 -9 -8 -8 -8 -7 -7 -6 -6 -6 -6 -5 -5 -4 -3 -3 -2 -1 ------- Run | Yrd Mat Min Mat Min Exi Min Mat Gar Fac Gar Fac Gar Fac Gar Fac Gar Fac Res DSF Res Acc Slots Evolved 18 | . . . 2 . . . 2 . 2 . 2 . . . 2 . 2 2 . 2 2 Power 1 | . . . . . . . . . . . . . . . 1 . . . . . . Propulsion 6 | . . . 1 . . . . . 1 . . . . . . . . 2 . 2 . Utility 7 | . . . . . . . 1 . 1 . 1 . . . 1 . 1 . . . 2 Weapon 4 | . . . 1 . . . 1 . . . 1 . . . . . 1 . . . . Parts Attached 200 | . 7 4 25 4 18 3 16 17 1 14 21 12 1 16 3 12 9 . 6 3 8 Power 24 | . . 1 3 . 2 1 3 2 . 1 4 . . 3 . 2 . . . 1 1 Engine 18 | . . 1 3 . 1 1 2 2 . 1 4 . . 2 . . . . . . 1 Core 2 | . . . . . 1 . 1 . . . . . . . . . . . . . . Reactor 4 | . . . . . . . . . . . . . . 1 . 2 . . . 1 . Propulsion 60 | . 2 . 12 2 3 1 4 8 1 6 4 2 . 6 . 5 2 . 1 1 . Treads 51 | . 2 . 12 2 2 1 3 8 1 3 4 2 . 4 . 5 2 . . . . Leg 6 | . . . . . 1 . 1 . . . . . . 2 . . . . 1 1 . Wheel 3 | . . . . . . . . . . 3 . . . . . . . . . . . Hover . | . . . . . . . . . . . . . . . . . . . . . . Flight . | . . . . . . . . . . . . . . . . . . . . . . Utility 59 | . 3 1 2 1 6 1 5 3 . 3 7 4 1 2 1 4 4 . 5 1 5 Device 16 | . . 1 . . 3 . 1 1 . . 2 3 . 1 . . 1 . 1 . 2 Storage 4 | . 2 . . . 1 . 1 . . . . . . . . . . . . . . Processor 5 | . . . . . . . . . . . 2 . . . . . 2 . . . 1 Hackware 12 | . . . . . . . . . . . 1 . 1 . 1 3 1 . 3 1 1 Protection 22 | . 1 . 2 1 2 1 3 2 . 3 2 1 . 1 . 1 . . 1 . 1 Artifact . | . . . . . . . . . . . . . . . . . . . . . . Weapon 57 | . 2 2 8 1 7 . 4 4 . 4 6 6 . 5 2 1 3 . . . 2 Energy Gun 8 | . . . 1 . . . 2 . . 1 . 1 . . . . 2 . . . 1 Energy Cannon 1 | . . . . . . . . . . . 1 . . . . . . . . . . Ballistic Gun 36 | . 1 1 7 1 4 . 2 4 . 3 3 2 . 5 1 1 . . . . 1 Ballistic Cannon 4 | . 1 . . . . . . . . . 1 2 . . . . . . . . . Launcher 4 | . . 1 . . 2 . . . . . . 1 . . . . . . . . . Special Weapon 2 | . . . . . . . . . . . 1 . . . . . 1 . . . . Impact Weapon . | . . . . . . . . . . . . . . . . . . . . . . Slashing Weapon 1 | . . . . . 1 . . . . . . . . . . . . . . . . Piercing Weapon . | . . . . . . . . . . . . . . . . . . . . . . Special Melee Weapon 1 | . . . . . . . . . . . . . . . 1 . . . . . . Unidentified Prototypes 17 | . . . 2 . 6 . . . . . 2 1 . 2 . . 3 . 1 . . Parts Lost 73 | . . 1 1 1 3 2 4 . . 6 7 9 . 6 1 9 11 . 1 1 10 Power 7 | . . 1 . . . 1 1 . . . . . . 1 . 2 . . . . 1 Propulsion 26 | . . . . . 2 1 2 . . 1 3 3 . 4 . 3 4 . 1 . 2 Utility 15 | . . . . 1 1 . . . . 2 1 1 . 1 . 1 2 . . 1 4 Weapon 25 | . . . 1 . . . 1 . . 3 3 5 . . 1 3 5 . . . 3 Highest Loss Streak 5 | . . 1 1 1 2 2 1 . . 2 3 3 . 3 1 4 5 . 1 1 4 To Critical Strikes . | . . . . . . . . . . . . . . . . . . . . . . Average Backups 22 | . 16 23 24 23 20 22 22 23 23 25 23 24 24 22 22 23 21 5 4 1 1 Power . | . 1 1 2 1 1 1 . . . . . . . 1 . . . . . . . Propulsion 3 | . 6 9 6 5 4 2 3 4 1 3 1 . . . 4 4 4 . . . . Utility 11 | . 3 5 8 8 8 11 12 13 20 20 18 21 21 16 14 15 14 5 4 1 1 Weapon 5 | . 4 7 8 9 6 7 6 5 2 2 2 1 2 3 3 2 2 . . . . Tool/Special . | . . . . . . . . . . . . . . . . . . . . . . Unused Backups 100 | . 1 . 22 3 11 . 6 8 . 1 6 1 . 16 5 2 16 . 2 . . Power 6 | . . . 2 . 3 . . . . . 1 . . . . . . . . . . Propulsion 17 | . . . 8 . 1 . . 3 . 1 1 . . . . . 3 . . . . Utility 59 | . 1 . 7 2 6 . 2 3 . . 2 1 . 15 5 . 13 . 2 . . Weapon 18 | . . . 5 1 1 . 4 2 . . 2 . . 1 . 2 . . . . . Tool/Special . | . . . . . . . . . . . . . . . . . . . . . . Average Slot Usage (%) 95 | . 96 99 99 99 99 99 99 99 99 98 96 86 86 96 97 92 76 23 23 44 42 Engine 7 | . 14 13 11 11 8 2 7 8 7 7 6 6 6 3 3 1 . . . . . Reactor 1 | . . . . . . . . . . . . . . 2 5 6 8 . . 2 1 Treads 25 | . 23 28 33 32 32 33 26 27 30 20 10 24 26 20 23 22 19 4 1 . . Wheel 1 | . . . . . . . . . . 9 15 . . . . . . . . . . Device 2 | . . 3 1 . . . . 3 6 4 4 4 12 6 5 2 2 . . . 1 Storage 9 | . 14 14 11 11 14 11 9 9 7 7 6 6 6 6 5 5 4 . . . . Processor 2 | . . . . . . . . . . . 10 6 6 6 5 5 7 9 9 8 10 Hackware 2 | . . . . . . . . . . . 2 4 . 6 10 11 6 4 6 15 13 Protection 9 | . 10 10 9 10 7 11 17 14 15 16 7 8 6 5 5 4 3 . . 4 3 Ballistic Gun 27 | . 27 27 32 33 31 33 28 34 26 25 29 10 . 32 25 20 9 . . . 1 Peak Build Rating 141 | . 12 13 27 27 39 38 45 43 50 58 73 75 78 79 81 91 104 43 79 118 141 Average Rating 44 | . 10 12 22 25 28 32 40 35 47 48 63 63 75 73 78 81 82 43 40 113 112 On Entrance 48 | 6 6 12 12 26 25 33 35 38 37 48 48 65 75 72 75 81 91 43 43 79 115 Naked Turns . | . . . . . . . . . . . . . . . . . . . . . . Heaviest Build 158 | 12 94 94 103 103 143 105 111 116 117 136 139 157 157 152 136 153 158 3 6 14 27 Greatest Support 180 | 20 40 40 69 69 66 69 69 63 83 83 91 91 80 90 90 103 113 3 90 180 180 Greatest Overweight (x) 11 | . 2 2 1 1 3 1 1 1 1 11 9 2 1 3 1 2 1 . . . 1 Average Overweight (x) 1 | . . 2 1 1 1 1 1 1 1 2 2 1 1 1 1 1 . . . . . Largest Inventory Capacity 25 | . 25 25 25 25 25 25 25 25 25 25 25 25 25 25 25 25 25 5 5 5 5 Average Capacity 24 | . 20 25 25 25 24 25 25 25 25 25 25 25 25 25 25 25 22 5 5 5 5 Most Carried 25 | . 23 25 25 25 25 25 25 25 25 25 25 25 25 25 25 25 25 5 5 2 5 Average Carried 22 | . 16 23 24 24 21 24 24 24 23 24 23 24 25 22 22 23 22 5 4 1 2 Final Capacity 25 | 8 25 25 25 25 25 25 25 25 25 25 25 25 25 25 25 25 5 5 5 5 5 Final Carried 25 | 6 23 25 25 25 25 25 25 25 25 25 25 25 25 25 22 25 5 5 5 2 1 Class Distribution -------------------- 34% | Tank 17% | Scavenger-Tank 10% | Mutant 9% | Botlord-Gunner 7% | Scavenger-Gunner 6% | Bothacker-Gunner 4% | Commander-Mutant 3% | Gunner Dominant Class ---------------- Mutant | -10/Materials Commander-Mutant | -10/Mines Tank | -9/Materials Tank | -9/Mines Tank | -9/Exiles Tank | -8/Mines Tank | -8/Materials Scavenger-Tank | -8/Garrison Scavenger-Tank | -7/Factory Scavenger-Tank | -7/Garrison Scavenger-Gunner | -6/Factory Scavenger-Gunner | -6/Garrison Scavenger-Gunner | -6/Factory Bothacker-Gunner | -6/Garrison Bothacker-Gunner | -5/Factory Botlord-Gunner | -5/Garrison Botlord-Executioner | -4/Factory Botlord-Executioner | -3/Research Mutant | -3/DSF Scavenger-Mutant | -2/Research Scavenger-Mutant | -1/Access Resources | -11 -10 -10 -9 -9 -9 -8 -8 -8 -7 -7 -6 -6 -6 -6 -5 -5 -4 -3 -3 -2 -1 ----------- Run | Yrd Mat Min Mat Min Exi Min Mat Gar Fac Gar Fac Gar Fac Gar Fac Gar Fac Res DSF Res Acc Matter Collected 11364 | 200 371 179 1009 162 768 196 957 1034 222 1016 1200 661 10 1699 317 872 234 . 30 60 167 Remotely . | . . . . . . . . . . . . . . . . . . . . . . Salvage Created 13274 | . 389 163 1498 184 243 134 1923 1297 289 1619 1479 511 . 1682 290 603 274 . 67 61 568 Parts 728 | . 36 20 97 18 36 13 95 75 14 66 73 30 . 68 9 27 13 . 8 6 24 Haulers Intercepted 15 | . 2 . 6 . . . 4 . 1 . 1 . . . . . . . . . 1 Recyclers Shooed 6 | . . . 3 . . . 2 . 1 . . . . . . . . . . . . Parts Field Recycled . | . . . . . . . . . . . . . . . . . . . . . . Retrieved Matter . | . . . . . . . . . . . . . . . . . . . . . . Parts Self-Destructed . | . . . . . . . . . . . . . . . . . . . . . . Prevented . | . . . . . . . . . . . . . . . . . . . . . . Kills | -11 -10 -10 -9 -9 -9 -8 -8 -8 -7 -7 -6 -6 -6 -6 -5 -5 -4 -3 -3 -2 -1 ------- Run | Yrd Mat Min Mat Min Exi Min Mat Gar Fac Gar Fac Gar Fac Gar Fac Gar Fac Res DSF Res Acc Combat Hostiles Destroyed 262 | . 10 9 27 4 5 6 31 28 4 26 23 15 . 36 5 20 4 . 2 1 6 Melee 8 | . . . . . 1 . . . . 3 . . . . . . . . 2 1 1 Guns 221 | . 10 6 27 4 . 6 28 27 4 23 23 4 . 36 5 11 2 . . . 5 Cannons 3 | . . . . . . . . . . . . 3 . . . . . . . . . AOE 30 | . . 3 . . 4 . 3 1 . . . 8 . . . 9 2 . . . . Classes Destroyed 24 | . 5 1 4 2 2 . 2 3 . . 1 1 . 2 . . 1 . . . . Worker 4 | . . . 1 . . . 1 . . . . . . . . . 1 . . . 1 Builder 5 | . 1 1 . 2 . . . . 1 . . . . . . . . . . . . Tunneler 2 | . . 1 . 1 . . . . . . . . . . . . . . . . . Hauler 15 | . 2 . 6 . . . 4 . 1 . 1 . . . . . . . . . 1 Recycler 8 | . . . 2 . . . 5 . . . 1 . . . . . . . . . . Mechanic 1 | . . . . . . . . . . . . . . . . . 1 . . . . Operator 3 | . 1 . . . . . . . . . 1 . . . 1 . . . . . . Turret 1 | . . . . . 1 . . . . . . . . . . . . . . . . Swarmer 62 | . 6 7 11 . . 5 7 2 . . 4 7 . . . 11 . . . . 2 Cutter 7 | . . . . . . . . 3 . . . . . 2 . . . . 2 . . Grunt 88 | . 4 2 8 3 . 1 12 8 3 13 7 2 . 20 2 3 . . . . . Brawler 6 | . . . . . . . 1 1 . 1 2 . . 1 . . . . . . . Duelist 7 | . . . 1 . . . 2 . . 2 1 . . 1 . . . . . . . Protector 1 | . . . . . . . . . . . . 1 . . . . . . . . . Sentry 50 | . . . 9 . . . 8 9 . 7 1 3 . 5 3 3 . . . . 2 Demolisher 1 | . . . . 1 . . . . . . . . . . . . . . . . . Specialist 3 | . . . . . . . . 1 . . . 1 . . . . 1 . . . . Hunter 17 | . . . . . . . 1 1 . 2 2 2 . 1 . 3 3 . . . 2 Programmer 14 | . . . . . . . . 3 1 1 5 . . 3 . . . . . 1 . Heavy 1 | . . . . . . . . . . . 1 . . . . . . . . . . Behemoth 2 | . . . . . . . . . . . . . . 2 . . . . . . . Striker 1 | . . . . . . . . . . . . . . 1 . . . . . . . Zionite 4 | . . . . 1 3 . . . . . . . . . . . . . . . . Assembled 4 | . . . . . 4 . . . . . . . . . . . . . . . . Best Kill Streak 7 | . 3 3 5 2 4 3 6 5 3 4 5 6 . 5 2 7 3 . 2 1 2 Combat Bots Only 7 | . 3 3 4 2 4 3 6 5 3 4 5 6 . 5 2 7 3 . 2 1 2 Max Kills in Single Turn 4 | . 1 3 2 2 2 1 4 2 1 1 1 3 . 2 1 3 2 . 1 1 1 Gunslinging 1 | . . . 1 . . . . 1 . . . . . 1 . 1 . . . . . Exploded 3 | . . 3 . . 2 . 3 1 . . . 3 . . . 3 1 . . . . Melee 1 | . . . . . 1 . . . . 1 . . . . . . . . 1 1 1 Uniques/NPCs Destroyed 4 | . . . . . 3 1 . . . . . . . . . . . . . . . 8R-AWN (-9/Exiles) EX-DEC (-9/Exiles) EX-HEX (-9/Exiles) AD-0RF (-8/Mines) Combat | -11 -10 -10 -9 -9 -9 -8 -8 -8 -7 -7 -6 -6 -6 -6 -5 -5 -4 -3 -3 -2 -1 -------- Run | Yrd Mat Min Mat Min Exi Min Mat Gar Fac Gar Fac Gar Fac Gar Fac Gar Fac Res DSF Res Acc Hostile Shots Fired 2390 | . 58 52 117 22 63 50 113 80 21 206 186 248 27 241 14 105 285 . 22 18 462 Missed 712 | . 16 19 34 5 18 5 31 17 7 73 41 72 10 71 5 25 114 . 10 6 133 Hits 1678 | . 42 33 83 17 45 45 82 63 14 133 145 176 17 170 9 80 171 . 12 12 329 Melee 29 | . . . 4 . . . 6 4 . 5 1 . . 4 . . . . 5 . . Projectile 1649 | . 42 33 79 17 45 45 76 59 14 128 144 176 17 166 9 80 171 . 7 12 329 AOE 21 | . . . . 11 . . . 3 . . . 5 . 1 . . . . 1 . . Critical Strikes 70 | . . . 2 . 20 . 4 5 1 7 6 3 . 4 . 1 1 . 1 . 15 Part Disruptions 5 | . . . . . . 1 . 1 . . . . . . . . . . . . 3 Damage Taken 25734 | . 381 351 1137 519 950 556 1275 1110 220 1581 1771 2118 132 2032 351 1524 2651 . 428 336 6311 Core 2941 | . 77 42 84 49 102 33 96 107 31 95 154 224 12 109 . 75 338 . 249 . 1064 Absorbed by Shields 569 | . . . . . . . . 25 . . . . . 518 . . . . 26 . . Ignored by Resistances 546 | . . . . . . . . . . 176 370 . . . . . . . . . . Regen/Repaired (Parts) 732 | . . . 64 . . . . . . . 216 . . . 452 . . . . . . Core Remaining (%) 67 | 100 . 52 . . . 33 . 63 . 82 . . . 41 . 92 70 . 80 100 33 Volleys Fired 739 | . 42 20 70 13 33 18 68 65 14 65 59 50 2 80 15 42 21 . . . 62 Largest 5 | . 2 2 3 3 3 3 4 4 4 4 5 4 1 5 5 5 3 . . . 2 Hottest 227 | . 50 46 69 69 76 76 170 170 101 163 161 207 5 75 75 95 227 . . . 127 Shots Fired 2204 | . 84 39 210 39 61 51 264 233 49 218 203 92 2 377 52 123 33 . . . 74 Gun 2105 | . 83 38 210 39 47 51 263 233 49 218 192 59 . 377 47 107 18 . . . 74 Cannon 31 | . 1 . . . . . . . . . 10 20 . . . . . . . . . Launcher 32 | . . 1 . . 14 . 1 . . . . 5 . . . 5 6 . . . . Special 36 | . . . . . . . . . . . 1 8 2 . 5 11 9 . . . . Kinetic 2004 | . 84 38 210 39 47 51 234 226 49 193 198 63 . 377 47 107 1 . . . 40 Thermal 132 | . . . . . . . 29 7 . 25 4 16 . . . . 17 . . . 34 Explosive 32 | . . 1 . . 14 . 1 . . . . 5 . . . 5 6 . . . . Electromagnetic . | . . . . . . . . . . . . . . . . . . . . . . Robot Hit Streak 45 | . 8 10 18 16 8 8 16 18 7 20 14 10 5 45 26 24 8 . . . 14 Robot Miss Streak 8 | . 4 2 4 2 3 4 5 5 2 8 6 4 . 3 1 4 2 . . . 5 Penetration Max 2 | . . . . . . . . . . . 2 . . . . . . . . . 1 Secondary Targets 51 | . 1 3 5 1 . 1 4 7 1 5 4 2 . 11 2 4 . . . . . Max Gunslinging Chain 2 | . 1 1 1 1 . 1 1 1 1 1 1 1 . 2 1 1 . . . . . Shots Hit Robots 1527 | . 49 27 136 30 54 31 172 143 34 172 142 64 2 276 43 80 26 . 5 1 40 Core Hits 672 | . 24 14 55 11 27 13 69 55 10 94 89 32 . 88 15 36 13 . 2 1 24 Critical Kills 18 | . 1 . . . . . . 1 . 1 12 . . 1 1 . . . . . 1 Critical Parts Destroyed 26 | . . . 1 . 3 . 1 3 . 1 14 1 . . 1 . . . . . 1 Critical Strikes 58 | . 1 . 1 . 6 . 4 4 . 7 27 1 . 1 2 . . . 1 . 3 Burn 3 | . . . . . . . 3 . . . . . . . . . . . . . . Destroy 45 | . 1 . 1 . 3 . 1 4 . 3 26 1 . 1 2 . . . . . 2 Blast 1 | . . . . . . . . . . . 1 . . . . . . . . . . Sever 9 | . . . . . 3 . . . . 4 . . . . . . . . 1 . 1 Melee Attacks 82 | . . . . . 26 . 1 7 6 20 2 3 . . 1 . 2 . 9 1 4 Impact . | . . . . . . . . . . . . . . . . . . . . . . Slashing 81 | . . . . . 26 . 1 7 6 20 2 3 . . . . 2 . 9 1 4 Piercing . | . . . . . . . . . . . . . . . . . . . . . . Sneak Attacks 5 | . . . . . . . . . 2 . . . . . 1 . 1 . . . 1 Combat Hostiles . | . . . . . . . . . . . . . . . . . . . . . . Follow-up Attacks . | . . . . . . . . . . . . . . . . . . . . . . Damage Inflicted 34691 | . 530 519 2224 563 2056 477 3070 2465 823 3806 2727 2639 . 6475 837 2474 1047 . 225 55 1679 Guns 27013 | . 489 378 2197 462 426 461 2723 2381 615 2895 2411 923 . 6458 837 1607 371 . . . 1379 Cannons 1147 | . 15 . . . . . . . . . 316 816 . . . . . . . . . Explosions 3227 | . . 88 . . 562 . 269 84 . . . 804 . . . 867 553 . . . . Melee 2884 | . . . . . 1066 . . . 187 911 . 94 . . . . 94 . 225 55 252 Ramming 420 | . 26 53 27 101 2 16 78 . 21 . . 2 . 17 . . 29 . . . 48 Kinetic 25635 | . 504 378 2197 462 426 461 2199 2281 615 2400 2637 1400 . 6458 837 1607 25 . . . 748 Thermal 2525 | . . . . . . . 524 100 . 495 90 339 . . . . 346 . . . 631 Explosive 3227 | . . 88 . . 562 . 269 84 . . . 804 . . . 867 553 . . . . Electromagnetic . | . . . . . . . . . . . . . . . . . . . . . . Impact . | . . . . . . . . . . . . . . . . . . . . . . Slashing 2884 | . . . . . 1066 . . . 187 911 . 94 . . . . 94 . 225 55 252 Piercing . | . . . . . . . . . . . . . . . . . . . . . . Highest Corruption 23 | . . . . . . . . 2 1 2 . . . 2 5 5 4 . . . 23 Average Corruption 3 | . . . . . . . . 1 1 1 . . . 1 5 5 2 . . . 7 Corruption Purged . | . . . . . . . . . . . . . . . . . . . . . . Corruption Blocked . | . . . . . . . . . . . . . . . . . . . . . . Effects 117 | . . . . . . . . 2 2 15 . . . 13 1 72 3 . . . 9 Message Errors 28 | . . . . . . . . 1 . 2 . . . 6 . 17 1 . . . 1 Matter Fused 37 | . . . . . . . . 1 1 6 . . . 2 . 25 1 . . . 1 Heat Flow Errors 16 | . . . . . . . . . . 3 . . . 2 . 10 1 . . . . Energy Discharges 11 | . . . . . . . . . 1 . . . . 2 1 6 . . . . 1 Parts Rejected 3 | . . . . . . . . . . . . . . . . 1 . . . . 2 Data Loss (minor) 9 | . . . . . . . . . . 1 . . . . . 7 . . . . 1 Data Loss (major) 6 | . . . . . . . . . . 1 . . . . . 5 . . . . . Misfires 1 | . . . . . . . . . . . . . . 1 . . . . . . . Alerts 2 | . . . . . . . . . . 1 . . . . . 1 . . . . . Weapon Failures 4 | . . . . . . . . . . 1 . . . . . . . . . . 3 Overload Shots . | . . . . . . . . . . . . . . . . . . . . . . Overflow Damage 296 | . . . . . . . 40 . 64 78 . 32 . . . 19 45 . 18 . . Projectiles 32 | . . . . . . . . . . . . 32 . . . . . . . . . Explosions 104 | . . . . . . . 40 . . . . . . . . 19 45 . . . . Melee 160 | . . . . . . . . . 64 78 . . . . . . . . 18 . . Knockbacks 7 | . . 1 . . . 1 . . . . 2 3 . . . . . . . . . Impact 2 | . . 1 . . . 1 . . . . . . . . . . . . . . . Kinetic 5 | . . . . . . . . . . . 2 3 . . . . . . . . . Secondary . | . . . . . . . . . . . . . . . . . . . . . . Self-Inflicted Damage 255 | . . . . . . . 11 66 . . . 42 . . . 70 47 . . . 19 Shots 6 | . . . . . . . 1 1 . . . 1 . . . 2 1 . . . . Rammed 49 | . 2 4 5 6 1 2 8 . 1 . . 1 . 2 . . 6 . . . 11 Targets Rammed 60 | . 2 5 6 8 1 2 8 . 1 . . 1 . 2 . . 6 . . . 18 Kicked 7 | . . . . . . . . . . . . . . . . . . . . . 7 Crushed 4 | . . 1 1 2 . . . . . . . . . . . . . . . . . Highest Temperature 441 | . 24 74 198 92 50 257 282 323 78 228 337 433 . 187 . 248 441 . . . 181 Average Temperature 78 | . 10 30 42 29 25 69 81 89 43 57 95 148 . 65 . 86 203 . . . 82 Received Heat Transfer 4274 | . 75 120 354 57 36 428 432 324 54 576 415 321 42 560 81 90 183 . . 72 54 Effects 9 | . . . . . . 1 3 . . . 3 2 . . . . . . . . . Shutdowns 1 | . . . . . . . . . . . . 1 . . . . . . . . . Energy Bleed 2 | . . . . . . 1 . . . . . 1 . . . . . . . . . Interference 6 | . . . . . . . 3 . . . 3 . . . . . . . . . . Siege Activations . | . . . . . . . . . . . . . . . . . . . . . . Martial Activations . | . . . . . . . . . . . . . . . . . . . . . . Shielding Activations . | . . . . . . . . . . . . . . . . . . . . . . Robots Disrupted . | . . . . . . . . . . . . . . . . . . . . . . Combat Hostiles . | . . . . . . . . . . . . . . . . . . . . . . Robots Corrupted . | . . . . . . . . . . . . . . . . . . . . . . Combat Hostiles . | . . . . . . . . . . . . . . . . . . . . . . Parts Fried 1 | . . . . . . . . . . . . . . . . . 1 . . . . Impact Corruptions 1 | . . . . . . . . . . . . . . 1 . . . . . . . Robots Melted . | . . . . . . . . . . . . . . . . . . . . . . Combat Hostiles . | . . . . . . . . . . . . . . . . . . . . . . Parts Melted 8 | . . . . . . . 6 . . . . 1 . . . . . . . . 1 Heat Transferred 4307 | . . . . . . . 1184 185 . 1125 111 444 . . . . 444 . . . 814 Parts Sabotaged . | . . . . . . . . . . . . . . . . . . . . . . Parts Stolen . | . . . . . . . . . . . . . . . . . . . . . . Parts Stripped . | . . . . . . . . . . . . . . . . . . . . . . Power Chain Reactions . | . . . . . . . . . . . . . . . . . . . . . . Alert | -11 -10 -10 -9 -9 -9 -8 -8 -8 -7 -7 -6 -6 -6 -6 -5 -5 -4 -3 -3 -2 -1 ------- Run | Yrd Mat Min Mat Min Exi Min Mat Gar Fac Gar Fac Gar Fac Gar Fac Gar Fac Res DSF Res Acc Maximum Alert Level 5 | . . . 1 . . . 2 4 3 4 3 4 3 5 4 5 5 4 3 2 1 Low Security (%) 36 | . 100 100 35 100 . 100 55 . . . . . . . . . . . . . 22 Level 1 13 | . . . 64 . . . 33 23 . 4 5 . . . . . . . . . 77 Level 2 16 | . . . . . . . 11 18 87 41 86 35 64 18 . . . . . 100 . Level 3 11 | . . . . . . . . 44 12 29 7 41 35 21 1 10 . . 100 . . Level 4 9 | . . . . . . . . 13 . 23 . 22 . 26 98 7 35 100 . . . Level 5 11 | . . . . . . . . . . . . . . 33 . 81 22 . . . . High Security 1 | . . . . . . . . . . . . . . . . . 41 . . . . Max Security . | . . . . . . . . . . . . . . . . . . . . . . Peak Influence 3012 | . 94 81 317 159 . 102 478 1407 738 1257 747 1356 738 2773 1480 3012 2160 1141 964 552 288 Initial 1581 | . . . . 109 . . . 202 738 375 659 512 684 495 1455 979 1581 1141 859 542 288 Average 638 | . 13 16 206 13 . 16 169 773 631 773 524 908 690 1420 1240 2018 1737 1141 900 522 222 Influence Increases 13908 | . 282 318 935 141 . 247 969 1225 113 1002 748 1003 134 2478 578 2163 1122 5 115 30 300 Destroy 0b10 Robot/C 6600 | . 200 220 640 100 . 120 620 620 80 520 460 480 100 940 240 740 340 . 40 20 120 Destroy 0b10 Robot/NC 255 | . 20 10 50 15 . . 50 . 10 15 15 15 . . 20 . 25 . . . 10 Destroy Leader 1002 | . 44 40 174 20 . 30 168 30 12 50 112 40 20 60 50 40 70 . . 10 32 Allied During Kill 941 | . . 22 22 6 . 7 . 21 . . . 167 14 158 76 268 180 . . . . Successful Hack 267 | . 18 . 48 . . . 26 21 5 7 65 28 . 14 . 30 . 5 . . . Disable Machine 210 | . . 15 . . . . 15 . . . 60 . . 30 60 15 15 . . . . Anti-Garrison Action 2900 | . . . . . . . . 450 . 250 . 200 . 1150 . 850 . . . . . Destroy Structure 848 | . . 11 1 . . . 15 68 6 25 6 73 . 96 132 220 192 . . . 3 Partial Spotted 15 | . . . . . . . 15 . . . . . . . . . . . . . . Lose Combat Pursuer 870 | . . . . . . 90 60 15 . 135 30 . . 30 . . 300 . 75 . 135 Influence Decreases 13746 | . 282 318 654 422 . 247 658 129 983 282 1273 430 731 413 1952 550 1959 1034 297 512 620 Entered New Map 7870 | . . . . 172 . . . 109 669 162 598 220 621 213 1318 420 1431 1034 287 422 194 Time Decay 4006 | . 282 308 614 250 . 247 468 . 294 . 595 . 90 . 294 . 198 . . 80 286 Lost Part 670 | . . 10 10 . . . 40 . . 60 70 90 . 60 10 90 110 . 10 10 100 Lost Ally 750 | . . . 30 . . . . 20 20 60 10 120 20 140 30 40 220 . . . 40 Purge Threat 450 | . . . . . . . 150 . . . . . . . 300 . . . . . . Squads Dispatched 46 | . 1 . 1 . . . 5 . 2 . 9 . 1 . 4 . 11 . 1 . 11 Investigation 2 | . . . . . . . 1 . . . . . . . . . . . . . 1 Extermination 6 | . . . . . . . . . 1 . 3 . . . . . . . . . 2 Reinforcement 13 | . 1 . 1 . . . 1 . . . 1 . . . 1 . 2 . 1 . 5 Assault 13 | . . . . . . . . . 1 . 2 . . . 1 . 9 . . . . Garrison 12 | . . . . . . . 3 . . . 3 . 1 . 2 . . . . . 3 Intercept . | . . . . . . . . . . . . . . . . . . . . . . Searches Triggered . | . . . . . . . . . . . . . . . . . . . . . . Construction Impeded . | . . . . . . . . . . . . . . . . . . . . . . Haulers Reinforced . | . . . . . . . . . . . . . . . . . . . . . . Active Scanning Responses . | . . . . . . . . . . . . . . . . . . . . . . Cargo Convoy Interrupts . | . . . . . . . . . . . . . . . . . . . . . . Stealth | -11 -10 -10 -9 -9 -9 -8 -8 -8 -7 -7 -6 -6 -6 -6 -5 -5 -4 -3 -3 -2 -1 --------- Run | Yrd Mat Min Mat Min Exi Min Mat Gar Fac Gar Fac Gar Fac Gar Fac Gar Fac Res DSF Res Acc Distress Signals 10 | . 1 . 4 1 . . 3 . . . . 1 . . . . . . . . . Communications Jammed 205 | . . . . . . . . . . . . 2 . . 4 . 142 . . . 57 Distress Signals 205 | . . . . . . . . . . . . 2 . . 4 . 142 . . . 57 Times Spotted 546 | . 29 11 45 8 73 13 50 29 7 32 30 25 5 45 13 35 58 . 9 6 23 Peak Tracking Total 23 | . 5 3 4 2 9 3 5 3 3 4 5 8 3 6 4 7 23 . 4 3 9 Tactical Retreats 63 | . . . . . 30 3 2 1 . 7 2 . . 2 . . 7 . 4 . 5 Traps | -11 -10 -10 -9 -9 -9 -8 -8 -8 -7 -7 -6 -6 -6 -6 -5 -5 -4 -3 -3 -2 -1 ------- Run | Yrd Mat Min Mat Min Exi Min Mat Gar Fac Gar Fac Gar Fac Gar Fac Gar Fac Res DSF Res Acc Traps Triggered 44 | . . . . . . . 3 8 . 6 1 . . 6 1 11 2 . 3 . 3 Indirectly . | . . . . . . . . . . . . . . . . . . . . . . Trap Hack Attempts . | . . . . . . . . . . . . . . . . . . . . . . Triggered . | . . . . . . . . . . . . . . . . . . . . . . Disarmed . | . . . . . . . . . . . . . . . . . . . . . . Reprogrammed . | . . . . . . . . . . . . . . . . . . . . . . Reused 3 | . . . . . 3 . . . . . . . . . . . . . . . . Traps Extracted . | . . . . . . . . . . . . . . . . . . . . . . Installed 3 | . . . . . 3 . . . . . . . . . . . . . . . . Triggered . | . . . . . . . . . . . . . . . . . . . . . . Most Traps Carried 4 | . . . . 4 3 . . . . . . . . . . . . . . . . Machines | -11 -10 -10 -9 -9 -9 -8 -8 -8 -7 -7 -6 -6 -6 -6 -5 -5 -4 -3 -3 -2 -1 ---------- Run | Yrd Mat Min Mat Min Exi Min Mat Gar Fac Gar Fac Gar Fac Gar Fac Gar Fac Res DSF Res Acc Machines Disabled 44 | . . 1 . . 6 . 1 6 . 3 4 2 . 11 4 5 1 . . . . Max in Single Turn 2 | . . 1 . . 2 . 1 2 . 1 1 1 . 1 1 1 . . . . . Garrison Access 1 | . . . . . . . . . . . . . . . . . . . . 1 . Garrison Relay 17 | . . . . . . . . 4 . 2 . 3 . 4 . 4 . . . . . Phase Generator 2 | . . . . . . . . 1 . . . 1 . . . . . . . . . Machines Repaired . | . . . . . . . . . . . . . . . . . . . . . . Machines Dismantled . | . . . . . . . . . . . . . . . . . . . . . . Machines Sabotaged . | . . . . . . . . . . . . . . . . . . . . . . Overloaded Fab Kills . | . . . . . . . . . . . . . . . . . . . . . . Hacking | -11 -10 -10 -9 -9 -9 -8 -8 -8 -7 -7 -6 -6 -6 -6 -5 -5 -4 -3 -3 -2 -1 --------- Run | Yrd Mat Min Mat Min Exi Min Mat Gar Fac Gar Fac Gar Fac Gar Fac Gar Fac Res DSF Res Acc Machines Accessed 66 | . 8 . 14 . 2 . 9 4 3 2 7 2 1 3 4 4 . 1 . 1 1 Terminals 48 | . 7 . 10 . . . 5 4 1 2 5 2 . 3 3 4 . 1 . . 1 Fabricators 1 | . . . . . . . . . 1 . . . . . . . . . . . . Repair Stations 4 | . 1 . 2 . . . . . . . 1 . . . . . . . . . . Recycling Units 4 | . . . 2 . . . 2 . . . . . . . . . . . . . . Scanalyzers 1 | . . . . . . . 1 . . . . . . . . . . . . . . Garrison Access 6 | . . . . . . . 1 . 1 . 1 . 1 . 1 . . . . 1 . Total Hacks 157 | . 23 . 44 . 2 . 21 5 6 7 19 3 2 5 9 7 . 1 . 1 2 Successful 81 | . 15 . 25 . 2 . 7 2 4 1 10 2 2 2 5 2 . 1 . 1 . Failed 75 | . 8 . 18 . . . 14 3 2 6 9 1 . 3 4 5 . . . . 2 Catastrophic 11 | . . . 1 . . . 1 1 . 1 1 . . 2 2 2 . . . . . Database Lockouts 1 | . . . 1 . . . . . . . . . . . . . . . . . . Manual 60 | . 14 . 25 . 1 . 5 . 1 . 5 . . . 5 4 . . . . . Terminals 117 | . 21 . 33 . . . 11 5 1 7 14 3 . 5 7 7 . 1 . . 2 Fabricators 3 | . . . . . . . . . 3 . . . . . . . . . . . . Repair Stations 11 | . 2 . 6 . . . . . . . 3 . . . . . . . . . . Recycling Units 10 | . . . 5 . . . 5 . . . . . . . . . . . . . . Scanalyzers 4 | . . . . . . . 4 . . . . . . . . . . . . . . Garrison Access 10 | . . . . . . . 1 . 2 . 2 . 2 . 2 . . . . 1 . Terminal Hacks 39 | . 6 . 10 . 2 . 3 2 . 1 5 2 . 2 3 2 . 1 . . . Record 1 | . . . . . 1 . . . . . . . . . . . . . . . . Robot Analysis 2 | . 1 . 1 . . . . . . . . . . . . . . . . . . Prototype ID Bank 6 | . 2 . 2 . . . 1 . . . 1 . . . . . . . . . . Open Door 3 | . . . . . . . . 1 . 1 . . . 1 . . . . . . . Open DSF 1 | . . . . . . . . . . . . . . . . . . 1 . . . Branch Access Points 1 | . . . . . . . . . . . 1 . . . . . . . . . . Emergency Access Points 4 | . . . . . . . . 1 . . . 1 . . . 2 . . . . . Terminal Index 2 | . . . 1 . . . . . . . 1 . . . . . . . . . . Unreport Threat 3 | . . . . . . . 1 . . . . . . . 2 . . . . . . Locate Traps 1 | . . . . . . . . . . . . . . . 1 . . . . . . Patrol Status 1 | . . . 1 . . . . . . . . . . . . . . . . . . Hauler Manifests 5 | . 1 . 2 . . . 1 . . . 1 . . . . . . . . . . Registered Components 2 | . 1 . 1 . . . . . . . . . . . . . . . . . . Zone Layout 4 | . 1 . 2 . . . . . . . 1 . . . . . . . . . . Garrison Registry 1 | . . . . . . . . . . . . 1 . . . . . . . . . Patrol Navigation 1 | . . . . . . . . . . . . . . 1 . . . . . . . Proto ID Catalog 1 | . . . . . 1 . . . . . . . . . . . . . . . . Fabricator Hacks 1 | . . . . . . . . . 1 . . . . . . . . . . . . Network Status 1 | . . . . . . . . . 1 . . . . . . . . . . . . Repair Station Hacks 7 | . 1 . 4 . . . . . . . 2 . . . . . . . . . . Scan Component 5 | . 1 . 3 . . . . . . . 1 . . . . . . . . . . Repair 2 | . . . 1 . . . . . . . 1 . . . . . . . . . . Recycling Unit Hacks 2 | . . . 1 . . . 1 . . . . . . . . . . . . . . Retrieve Components 2 | . . . 1 . . . 1 . . . . . . . . . . . . . . Scanalyzer 1 | . . . . . . . 1 . . . . . . . . . . . . . . Insert Component 1 | . . . . . . . 1 . . . . . . . . . . . . . . Garrison Access Hacks 10 | . . . . . . . 1 . 2 . 2 . 2 . 2 . . . . 1 . Unlock Access 5 | . . . . . . . 1 . 1 . 1 . 1 . 1 . . . . . . Seal Access 1 | . . . . . . . . . . . . . . . . . . . . 1 . Coupler Status 4 | . . . . . . . . . 1 . 1 . 1 . 1 . . . . . . Unauthorized Hacks 21 | . 8 . 10 . . . 1 . 1 . 1 . . . . . . . . . . Terminals 20 | . 8 . 10 . . . 1 . . . 1 . . . . . . . . . . Track 1 | . . . . . . . 1 . . . . . . . . . . . . . . Assimilate 2 | . 2 . . . . . . . . . . . . . . . . . . . . Botnet 2 | . . . 2 . . . . . . . . . . . . . . . . . . Operators 3 | . 1 . 1 . . . . . . . 1 . . . . . . . . . . Skim 12 | . 5 . 7 . . . . . . . . . . . . . . . . . . Fabricators 1 | . . . . . . . . . 1 . . . . . . . . . . . . Haulers 1 | . . . . . . . . . 1 . . . . . . . . . . . . Repair Stations . | . . . . . . . . . . . . . . . . . . . . . . Recycling Units . | . . . . . . . . . . . . . . . . . . . . . . Scanalyzers . | . . . . . . . . . . . . . . . . . . . . . . Garrison Access . | . . . . . . . . . . . . . . . . . . . . . . Data Cores Recovered 2 | . . . . . . . . . . . 1 . . . 1 . . . . . . Used . | . . . . . . . . . . . . . . . . . . . . . . Hacking Detections 56 | . 8 . 13 . . . 7 4 3 2 7 1 1 1 4 4 . . . . 1 Full Trace Events 4 | . . . . . . . . . . 1 . . . 1 . 1 . . . . 1 Feedback Events 1 | . . . . . . . . . . . . . . . . . . . . . 1 Corruption 1 | . . . . . . . . . . . . . . . . . . . . . 1 Feedback Blocked . | . . . . . . . . . . . . . . . . . . . . . . Robot Schematics Acquired . | . . . . . . . . . . . . . . . . . . . . . . Robots Built . | . . . . . . . . . . . . . . . . . . . . . . Authchips . | . . . . . . . . . . . . . . . . . . . . . . Time . | . . . . . . . . . . . . . . . . . . . . . . Total Robot Build Rating . | . . . . . . . . . . . . . . . . . . . . . . Part Schematics Acquired . | . . . . . . . . . . . . . . . . . . . . . . Parts Built . | . . . . . . . . . . . . . . . . . . . . . . Authchips . | . . . . . . . . . . . . . . . . . . . . . . Time . | . . . . . . . . . . . . . . . . . . . . . . Total Part Build Rating . | . . . . . . . . . . . . . . . . . . . . . . Parts Repaired 2 | . . . 1 . . . . . . . 1 . . . . . . . . . . Time 73 | . . . 51 . . . . . . . 22 . . . . . . . . . . Parts Recycled . | . . . . . . . . . . . . . . . . . . . . . . Recycled Matter . | . . . . . . . . . . . . . . . . . . . . . . Retrieved Matter . | . . . . . . . . . . . . . . . . . . . . . . Retrieved Components 10 | . . . 9 . . . 1 . . . . . . . . . . . . . . Parts Scanalyzed . | . . . . . . . . . . . . . . . . . . . . . . Part Schematics Acquired . | . . . . . . . . . . . . . . . . . . . . . . Parts Damaged . | . . . . . . . . . . . . . . . . . . . . . . Bothacking | -11 -10 -10 -9 -9 -9 -8 -8 -8 -7 -7 -6 -6 -6 -6 -5 -5 -4 -3 -3 -2 -1 ------------ Run | Yrd Mat Min Mat Min Exi Min Mat Gar Fac Gar Fac Gar Fac Gar Fac Gar Fac Res DSF Res Acc Used RIF Installer 5 | . . . . . . . . 1 . 1 . 1 . 1 . 1 . . . . . Signal Jammer 1 | . . . . . . . . . . . . 1 . . . . . . . . . Watcher Feeds 1 | . . . . . . . . . . . . . . 1 . . . . . . . Structural Interface 1 | . . . . . . . . . . 1 . . . . . . . . . . . Program Shield 1 | . . . . . . . . . . . . . . . . 1 . . . . . Robots Hacked 11 | . . . . . . . . . . . 1 . 1 . 4 2 3 . . . . Non-combat 8 | . . . . . . . . . . . 1 . 1 . 4 . 2 . . . . Combat 3 | . . . . . . . . . . . . . . . . 2 1 . . . . Robot Hacks Applied 13 | . . . . . . . . . . . 1 . 1 . 4 2 5 . . . . find_chute 1 | . . . . . . . . . . . . . . . 1 . . . . . . find_dsf 1 | . . . . . . . . . . . . . . . . . 1 . . . . drop_inventory 1 | . . . . . . . . . . . . . . . . . 1 . . . . formatsys_low 7 | . . . . . . . . . . . 1 . 1 . 3 . 2 . . . . formatsys_high 2 | . . . . . . . . . . . . . . . . 2 . . . . . formatsys_deep 1 | . . . . . . . . . . . . . . . . . 1 . . . . Relay Couplers Released 68 | . . . . . . . . 14 . 10 . 11 . 17 . 16 . . . . . Machine Destruction 64 | . . . . . . . . 14 . 6 . 11 . 17 . 16 . . . . . Programmers 4 | . . . . . . . . . . 4 . . . . . . . . . . . Attached 7 | . . . . . . . . . . . 1 . 1 . . 3 1 . 1 . . Fabnet Peak Effective % . | . . . . . . . . . . . . . . . . . . . . . . Robots Rewired 25 | . . . . . . . . 2 . 3 . 7 . 6 . 6 1 . . . . Allies Hacked 2 | . . . . . . . . 1 . . . . . 1 . . . . . . . Hacks Repelled . | . . . . . . . . . . . . . . . . . . . . . . Allies | -11 -10 -10 -9 -9 -9 -8 -8 -8 -7 -7 -6 -6 -6 -6 -5 -5 -4 -3 -3 -2 -1 -------- Run | Yrd Mat Min Mat Min Exi Min Mat Gar Fac Gar Fac Gar Fac Gar Fac Gar Fac Res DSF Res Acc Total Allies 51 | . 1 3 . 2 . . . 2 . 3 1 9 1 10 3 10 6 . . . . Largest Group 11 | . 1 4 4 2 1 . . 2 1 3 1 9 2 5 4 11 9 . . . . Highest-Rated Group 854 | . 10 50 50 39 31 . . 70 31 82 27 419 78 366 314 854 637 . . . . Highest-Rated Ally 148 | . 10 16 16 31 31 . . 39 31 31 27 95 46 148 148 148 148 . . . . Total Orders 27 | . . . 2 . . . . . . . 3 . . 7 4 3 3 . . . 5 STAY 6 | . . . 1 . . . . . . . . . . 3 . 2 . . . . . FOLLOW 8 | . . . 1 . . . . . . . 1 . . 2 1 1 1 . . . 1 AID 1 | . . . . . . . . . . . . . . . 1 . . . . . . DROP 4 | . . . . . . . . . . . 1 . . 1 1 . 1 . . . . PICKUP 2 | . . . . . . . . . . . . . . . 1 . 1 . . . . COLLECT 2 | . . . . . . . . . . . 1 . . 1 . . . . . . . EXPLORE 4 | . . . . . . . . . . . . . . . . . . . . . 4 Ally Attacks 439 | . . 10 30 3 . 9 . 13 6 11 . 58 23 67 53 82 74 . . . . Total Damage 14234 | . . 41 361 41 . 531 . 200 43 253 . 1834 661 2410 2015 2907 2937 . . . . Kills 85 | . . 2 6 1 . 1 . 3 . . . 11 5 11 11 18 16 . . . . Allies Corrupted 1 | . . . . . . . . . . . . . . 1 . . . . . . . Allies Melted 1 | . . . . . . . . . . . . . . . . . 1 . . . . Turrets Deployed 1 | . . . . . . 1 . . . . . . . . . . . . . . . Intel | -11 -10 -10 -9 -9 -9 -8 -8 -8 -7 -7 -6 -6 -6 -6 -5 -5 -4 -3 -3 -2 -1 ------- Run | Yrd Mat Min Mat Min Exi Min Mat Gar Fac Gar Fac Gar Fac Gar Fac Gar Fac Res DSF Res Acc Active Infowar (turns) 3055 | . . 626 377 . . . 80 363 232 . 707 133 164 . . 1 217 . . . 155 Optics 217 | . . . . . . . . . . . . . . . . . 217 . . . . Sensors 1355 | . . . . . . . . 261 232 . 707 . . . . . . . . . 155 Seismic 1185 | . . 626 377 . . . 80 102 . . . . . . . . . . . . . Spoofing 2 | . . . . . . . . . . . . 2 . . . . . . . . . Jamming 296 | . . . . . . . . . . . . 131 164 . . 1 . . . . . Robot Analysis Total 2 | . 1 . 1 . . . . . . . . . . . . . . . . . . Derelict Logs Recovered 3 | . . 2 . 1 . . . . . . . . . . . . . . . . . Drone Launches 11 | . . . . . . . . . . . . . . . . . . . . . 11 Drone Recoveries 7 | . . . . . . . . . . . . . . . . . . . . . 7 Exploration | -11 -10 -10 -9 -9 -9 -8 -8 -8 -7 -7 -6 -6 -6 -6 -5 -5 -4 -3 -3 -2 -1 ------------- Run | Yrd Mat Min Mat Min Exi Min Mat Gar Fac Gar Fac Gar Fac Gar Fac Gar Fac Res DSF Res Acc Turns Passed 34496 | . 1845 2224 3301 2563 4866 1474 2350 2065 641 1635 1882 1550 181 3020 651 2587 719 4 139 172 627 Spaces Moved 13396 | 1 747 672 1243 1026 1793 585 822 726 240 699 983 533 57 956 236 983 373 8 114 114 485 Core 567 | . . . . . . . . . . . . . . . . . 149 8 103 . 307 Treads 11059 | . 525 672 1243 1026 1793 585 822 726 240 314 124 533 57 956 236 983 224 . . . . Legs 526 | 1 222 . . . . . . . . . . . . . . . . . 11 114 178 Wheels 1244 | . . . . . . . . . . 385 859 . . . . . . . . . . Hover . | . . . . . . . . . . . . . . . . . . . . . . Flight . | . . . . . . . . . . . . . . . . . . . . . . Fastest Speed 50 | 120 120 320 240 240 160 240 240 240 240 135 135 242 245 240 240 240 50 50 50 140 50 Average Speed 227 | 120 228 320 240 240 250 240 240 240 240 182 149 252 245 273 240 240 164 50 58 140 83 Slowest Speed 405 | 120 320 320 240 240 400 240 240 240 240 255 242 326 245 405 240 320 243 50 140 140 140 Overloaded Moves . | . . . . . . . . . . . . . . . . . . . . . . Propulsion Burnouts . | . . . . . . . . . . . . . . . . . . . . . . Robots Hopped . | . . . . . . . . . . . . . . . . . . . . . . Potential Cave-ins . | . . . . . . . . . . . . . . . . . . . . . . Cave-ins Triggered . | . . . . . . . . . . . . . . . . . . . . . . Exploration Rate (%) 61 | 2 95 101 96 100 91 94 72 96 8 84 13 83 3 98 9 97 26 . 91 10 22 Regions Visited 21 Branch Regions 4 Pre-discovered Areas 4 | . . . 2 1 1 . . . . . . . . . . . . . . . . Known Exits Taken 8 | . . 1 . . . 1 1 . 1 . 1 . 1 . 1 . . 1 . . . Unknown Exits Taken 7 | 1 1 . 1 1 1 . . . . . . . . . . . 1 . . 1 . Scrap Searched 6 | . . 2 . 3 . 1 . . . . . . . . . . . . . . . Spaces Dug 78 | . . . . . . . 1 4 4 . 2 45 . . . 22 . . . . . Terrain Destroyed 311 | . . 11 . . 40 . 10 78 4 . 8 74 . . . 44 41 . . . 1 Melee 11 | . . . . . . . 1 4 4 . 2 . . . . . . . . . . Projectile 22 | . . . . . . . . . . . 6 14 . . . . 1 . . . 1 AOE 278 | . . 11 . . 40 . 9 74 . . . 60 . . . 44 40 . . . . Terrain Rammed . | . . . . . . . . . . . . . . . . . . . . . . Walls Destroyed . | . . . . . . . . . . . . . . . . . . . . . . Machines Disabled . | . . . . . . . . . . . . . . . . . . . . . . Actions | -11 -10 -10 -9 -9 -9 -8 -8 -8 -7 -7 -6 -6 -6 -6 -5 -5 -4 -3 -3 -2 -1 --------- Run | Yrd Mat Min Mat Min Exi Min Mat Gar Fac Gar Fac Gar Fac Gar Fac Gar Fac Res DSF Res Acc Total 15926 | . 818 703 1448 1090 2100 612 1021 911 267 896 1253 648 95 1229 299 1155 449 7 177 125 623 Wait 608 | . . . 18 22 125 . 60 18 . 18 120 10 33 53 26 44 22 . 1 6 32 Move 13377 | . 746 671 1242 1025 1792 584 822 724 239 698 982 532 57 955 236 982 373 7 113 113 484 Hop . | . . . . . . . . . . . . . . . . . . . . . . Pick Up 222 | . 17 3 33 9 42 2 18 21 2 1 27 5 . 18 4 13 3 . 2 1 1 Fast Attach 98 | . 3 . 5 1 6 1 6 5 . 13 9 8 . 12 3 4 8 . 4 2 8 Attach 56 | . . 1 3 1 8 1 5 . 2 . 7 6 . 1 2 8 3 . 2 1 5 Detach 18 | . 1 . . . 5 . . . . 1 1 2 . 1 . 2 . . . 1 4 Swap 152 | . 4 3 21 2 12 3 15 24 3 13 19 6 3 6 5 10 3 . . . . Drop 247 | . 3 . 50 9 47 1 18 27 . 9 27 6 . 23 7 5 9 . 4 . 2 Fire 739 | . 42 20 70 13 33 18 68 65 14 65 59 50 2 80 15 42 21 . . . 62 Melee 82 | . . . . . 26 . 1 7 6 20 2 3 . . 1 . 2 . 9 1 4 Ram 14 | . . . . . . . . . . . . . . . . . 3 . . . 11 Kick 7 | . . . . . . . . . . . . . . . . . . . . . 7 Crush 38 | . 2 5 6 8 1 2 8 . 1 . . 1 . 2 . . 2 . . . . Escape Stasis 102 | . . . . . . . . 5 . 24 . . . 14 . 16 . . 42 . 1 Rewire 161 | . . . . . . . . 15 . 34 . 19 . 64 . 29 . . . . . Trap 3 | . . . . . 3 . . . . . . . . . . . . . . . . Miscellaneous 2 | . . . . . . . . . . . . . . . . . . . . . 2 Route ------- -11/Scrapyard -10/Materials (discovered 5 exits: *Mat x3 / [*Min] / Sub) -10/Mines (discovered 3 exits: *Mat x2 / *Sub) -9/Materials (discovered 5 exits: *Mat x3 / [*Min x2]) -9/Mines (discovered 3 exits: *Mat x2 / *Exi) -9/Exiles -8/Mines (discovered 2 exits: *Mat x2) -8/Materials (discovered 4 exits: *Fac x3 / Gar) -8/Garrison (discovered 3 exits: *Fac x3) -7/Factory -7/Garrison (discovered 3 exits: *Fac x3) -6/Factory (discovered 3 exits: *Low x2 / Gar) -6/Garrison (discovered 3 exits: *Fac x3) -6/Factory -6/Garrison (discovered 3 exits: *Fac x3) -5/Factory (discovered 2 exits: [*Upp] / Gar) -5/Garrison (discovered 3 exits: [*Fac x3]) -4/Factory -3/Research -3/DSF -2/Research (discovered 2 exits: *Acc x2) -1/Access To Epsilon Eridani History --------- Turn | Location | Event 1 | -11/Scrapyard | Discovered new exit (range 0) 1 | -11/Scrapyard | Entered Materials 128 | -10/Materials | Discovered new exit (range 15) 283 | -10/Materials | Discovered new exit (range 14) 325 | -10/Materials | Build established: Mutant 386 | -10/Materials | Discovered new exit (range 16) 667 | -10/Materials | Identified exit to Subcaves 667 | -10/Materials | Identified exit to Materials 737 | -10/Materials | Learned Storage trap positions 844 | -10/Materials | Learned location of 1 exit from Storage 883 | -10/Materials | Learned location of 1 exit from Storage 913 | -10/Materials | Learned Storage security intel 1846 | -10/Materials | Entered Mines 1846 | -10/Mines | Accompanied by 1 ally 2241 | -10/Mines | Learned location of 1 exit from Materials 2473 | -10/Mines | Assisted by bots powering up and referring to "LRC-V3" 2505 | -10/Mines | Discovered exit to Materials (range 11) 2760 | -10/Mines | Build established: Commander-Mutant 3276 | -10/Mines | Received a Rocket Launcher from a helpful Derelict 3583 | -10/Mines | Learned Materials garrison access intel 3775 | -10/Mines | Discovered exit to Subcaves (range 6) 4070 | -10/Mines | Entered Materials 4070 | -9/Materials | Accompanied by 4 allies 4070 | -9/Materials | Evolved 2 slots: Propulsion x1, Weapon x1 4071 | -9/Materials | Identified exit to Materials 4768 | -9/Materials | Build established: Tank 5087 | -9/Materials | Discovered new exit (range 16) 5235 | -9/Materials | Build established: Scavenger-Tank 5338 | -9/Materials | Discovered exit to Materials (range 8) 5394 | -9/Materials | Learned location of 1 exit from Storage 5448 | -9/Materials | Learned Storage trap positions 5494 | -9/Materials | Learned location of 2 exits from Materials 6068 | -9/Materials | Build established: Tank 6217 | -9/Materials | Discovered new exit (range 16) 6603 | -9/Materials | Central database locked down 7151 | -9/Materials | Repaired Imp. Assault Rifle 7371 | -9/Materials | Entered Mines 7534 | -9/Mines | Learned location of Storage (-7) 7534 | -9/Mines | Joined a pair of Derelicts in attacking an 0b10 outpost 7602 | -9/Mines | Assembled infested the area 7640 | -9/Mines | Met 8R-AWN 7767 | -9/Mines | Found a hidden stash of uninstalled traps 8241 | -9/Mines | Discovered exit to Materials (range 8) 8479 | -9/Mines | Discovered new exit (range 5) 8681 | -9/Mines | Found a damaged Exp. Sensor Array with a note attached 8685 | -9/Mines | Found Prototype Device 8737 | -9/Mines | Discovered exit to Materials (range 6) 9934 | -9/Mines | Entered Exiles 9934 | -9/Exiles | Accompanied by 1 ally 9964 | -9/Exiles | Led the pair of lost Derelicts to a safe place 9990 | -9/Exiles | Welcomed by 8R-AWN 10033 | -9/Exiles | Met EX-HEX 10107 | -9/Exiles | Met EX-BIN 10146 | -9/Exiles | Aligned with FarCom system 10148 | -9/Exiles | Given EX-Vault access code 10203 | -9/Exiles | Opened EX-Vault 10224 | -9/Exiles | Found Modified TNC 10230 | -9/Exiles | Found AWS/Autocannon 10243 | -9/Exiles | Found Longsword +1 10294 | -9/Exiles | Warned to stay clear of 0b10 Research branches 10371 | -9/Exiles | Met EX-DEC 10381 | -9/Exiles | Learned location of Zion (-6) 10478 | -9/Exiles | Visited The Gauntlet 11594 | -9/Exiles | Learned about 8R-AWN's background 12239 | -9/Exiles | Attacked by the Exiles 12332 | -9/Exiles | Build established: Mutant 12354 | -9/Exiles | Core integrity fell below 50% 12389 | -9/Exiles | Destroyed 8R-AWN 12395 | -9/Exiles | Found Prototype Ballistic Gun 12399 | -9/Exiles | Found Prototype Device 12399 | -9/Exiles | Identified AS-neutralizer No. 17b 12481 | -9/Exiles | Found Prototype Processor 12557 | -9/Exiles | Identified 8R-AWN's Boregun 12837 | -9/Exiles | Destroyed EX-DEC 12844 | -9/Exiles | Destroyed EX-HEX 12959 | -9/Exiles | Build established: Gunner 13104 | -9/Exiles | Found Prototype Processor 14062 | -9/Exiles | Build established: Tank 14514 | -9/Exiles | Found Deploy-a-Sentry 14780 | -9/Exiles | Discovered new exit (range 10) 14800 | -9/Exiles | Stole four prototypes: Modified TNC, AWS/Autocannon, Longsword +1, Deploy-a-Sentry 14800 | -9/Exiles | Entered Mines 14801 | -8/Mines | AD-0RF came to Exiles' defense 14802 | -8/Mines | DAS Turret deployed 14817 | -8/Mines | Allies destroyed AD-0RF 15038 | -8/Mines | Discovered exit to Materials (range 3) 15363 | -8/Mines | Discovered exit to Materials (range 10) 16098 | -8/Mines | Found DCF Scrap (12 items) 16274 | -8/Mines | Entered Materials 16274 | -8/Materials | Evolved 2 slots: Utility x1, Weapon x1 16275 | -8/Materials | Identified exit to Factory 16276 | -8/Materials | Loaded intel: 1 garrison access location 16739 | -8/Materials | Identified Exp. Sensor Array 17145 | -8/Materials | Discovered exit to Factory (range 5) 17532 | -8/Materials | Garrison activated, responded to threat 18624 | -8/Materials | Identified exit to Garrison 18624 | -8/Materials | Entered Garrison 18698 | -8/Garrison | Triggered checkpoint 18807 | -8/Garrison | Garrison Relay disabled 18913 | -8/Garrison | Triggered checkpoint 19108 | -8/Garrison | Build established: Scavenger-Tank 19223 | -8/Garrison | Phase Generator disabled 19278 | -8/Garrison | Discovered exit to Factory (range 3) 19377 | -8/Garrison | Garrison Relay disabled 19500 | -8/Garrison | Triggered checkpoint 19658 | -8/Garrison | Discovered exit to Factory (range 7) 19688 | -8/Garrison | Triggered checkpoint 19849 | -8/Garrison | Installed Relay Interface Framework 19880 | -8/Garrison | Garrison Relay disabled 20240 | -8/Garrison | Triggered checkpoint 20298 | -8/Garrison | Triggered checkpoint 20500 | -8/Garrison | Triggered checkpoint 20525 | -8/Garrison | Garrison Relay disabled 20582 | -8/Garrison | Discovered exit to Factory (range 8) 20689 | -8/Garrison | Entered Factory 20689 | -7/Factory | Accompanied by 1 ally 20689 | -7/Factory | Evolved 2 slots: Propulsion x1, Utility x1 20727 | -7/Factory | Identified exit to Garrison 21089 | -7/Factory | First assault squad dispatched 21330 | -7/Factory | Entered Garrison 21343 | -7/Garrison | Triggered checkpoint 21818 | -7/Garrison | Triggered checkpoint 21887 | -7/Garrison | Triggered checkpoint 22054 | -7/Garrison | Triggered checkpoint 22070 | -7/Garrison | Discovered new exit (range 14) 22171 | -7/Garrison | Expanded RIF knowledge: Structural Interface 22632 | -7/Garrison | Triggered checkpoint 22688 | -7/Garrison | Garrison Relay disabled 22740 | -7/Garrison | Discovered new exit (range 13) 22864 | -7/Garrison | Lost 3 allies 22872 | -7/Garrison | Garrison Relay disabled 22889 | -7/Garrison | Discovered new exit (range 11) 22965 | -7/Garrison | Entered Factory 22965 | -6/Factory | Evolved 2 slots: Utility x1, Weapon x1 22965 | -6/Factory | Identified Exp. Targeting Computer 23125 | -6/Factory | Discovered new exit (range 13) 23315 | -6/Factory | First assault squad dispatched 23499 | -6/Factory | Identified exit to Lower Caves 23654 | -6/Factory | Repaired Med. Reactive Plating 23889 | -6/Factory | Build established: Scavenger-Skirmisher 24394 | -6/Factory | Spotted B-75 Beast 24420 | -6/Factory | Identified exit to Garrison 24448 | -6/Factory | Garrison activated, responded to threat 24504 | -6/Factory | Lost 3 parts (1n2w) 24589 | -6/Factory | Lost 3 parts (1n1u1w) 24847 | -6/Factory | Entered Garrison 24929 | -6/Garrison | Triggered checkpoint 25009 | -6/Garrison | Triggered checkpoint 25100 | -6/Garrison | Triggered checkpoint 25108 | -6/Garrison | Build established: Scavenger-Tank 25141 | -6/Garrison | Lost 3 parts (1n2w) 25365 | -6/Garrison | Found Imp. Powered Armor 25369 | -6/Garrison | Found Imp. Powered Armor 25392 | -6/Garrison | Discovered new exit (range 12) 25446 | -6/Garrison | Phase Generator disabled 25447 | -6/Garrison | Triggered checkpoint 25460 | -6/Garrison | Met a derelict Sapper fleeing the area 25467 | -6/Garrison | Found embedded Infiltrators 25572 | -6/Garrison | Garrison Relay disabled 25704 | -6/Garrison | Build established: Scavenger-Gunner 25791 | -6/Garrison | Triggered checkpoint 25881 | -6/Garrison | Triggered checkpoint 25887 | -6/Garrison | Garrison Relay disabled 25930 | -6/Garrison | Lost 3 parts (1n1u1w) 25960 | -6/Garrison | Discovered new exit (range 44) 25960 | -6/Garrison | Discovered new exit (range 32) 25960 | -6/Garrison | Discovered new exit (range 79) 26061 | -6/Garrison | Triggered checkpoint 26209 | -6/Garrison | Expanded RIF knowledge: Signal Jamming 26327 | -6/Garrison | Triggered checkpoint 26366 | -6/Garrison | Lost 5 allies 26397 | -6/Garrison | Entered Factory 26397 | -6/Factory | Accompanied by 2 allies 26482 | -6/Factory | Garrison activated, responded to threat 26578 | -6/Factory | Identified exit to Garrison 26578 | -6/Factory | Entered Garrison 26578 | -6/Garrison | Accompanied by 2 allies 26908 | -6/Garrison | Spotted Striker 26933 | -6/Garrison | Core integrity fell below 50% 26941 | -6/Garrison | Destroyed Striker 26954 | -6/Garrison | Rewired Striker 27130 | -6/Garrison | Triggered checkpoint 27213 | -6/Garrison | Expanded RIF knowledge: Watcher Feeds 27265 | -6/Garrison | Garrison Relay disabled 27565 | -6/Garrison | Build established: Bothacker-Gunner 27594 | -6/Garrison | Triggered checkpoint 27603 | -6/Garrison | Spotted B-75 Beast 27612 | -6/Garrison | Destroyed B-75 Beast 27738 | -6/Garrison | Triggered checkpoint 27770 | -6/Garrison | Found embedded Infiltrators 27779 | -6/Garrison | Garrison Relay disabled 27871 | -6/Garrison | Discovered new exit (range 12) 27999 | -6/Garrison | Rescued a captive Derelict 27999 | -6/Garrison | Rescued a captive Derelict 28025 | -6/Garrison | P-60 Hacker assimilated allied RO-46V(x) 28067 | -6/Garrison | Discovered new exit (range 11) 28104 | -6/Garrison | Triggered checkpoint 28112 | -6/Garrison | Triggered checkpoint 28276 | -6/Garrison | Lost 3 parts (1p1n1u) 28430 | -6/Garrison | Garrison Relay disabled 28665 | -6/Garrison | Spotted B-86 Titan 28679 | -6/Garrison | Destroyed B-86 Titan 28710 | -6/Garrison | Rewired B-86 Titan 28739 | -6/Garrison | Build established: Botlord-Gunner 28760 | -6/Garrison | Rewired B-90 Cyclops 29089 | -6/Garrison | Discovered new exit (range 10) 29106 | -6/Garrison | Triggered checkpoint 29146 | -6/Garrison | Garrison Relay disabled 29294 | -6/Garrison | Triggered checkpoint 29598 | -6/Garrison | Entered Factory 29598 | -5/Factory | Accompanied by 3 allies 29598 | -5/Factory | Evolved 2 slots: Power x1, Utility x1 29661 | -5/Factory | Build established: Bothacker-Gunner 29707 | -5/Factory | Discovered new exit (range 12) 29898 | -5/Factory | First assault squad dispatched 30119 | -5/Factory | Garrison activated, responded to threat 30247 | -5/Factory | Identified exit to Garrison 30249 | -5/Factory | Entered Garrison 30249 | -5/Garrison | Accompanied by 2 allies 30314 | -5/Garrison | Expanded RIF knowledge: Program Shield 30509 | -5/Garrison | Triggered checkpoint 30533 | -5/Garrison | Garrison Relay disabled 30699 | -5/Garrison | Spotted B-75 Beast 30707 | -5/Garrison | Assimilated Beast 6a with formatsys_high 30709 | -5/Garrison | Triggered checkpoint 30751 | -5/Garrison | Triggered checkpoint 30752 | -5/Garrison | Destroyed 7 combat bots 30834 | -5/Garrison | Build established: Botlord-Gunner 30923 | -5/Garrison | Discovered new exit (range 12) 30935 | -5/Garrison | Triggered checkpoint 30989 | -5/Garrison | Triggered checkpoint 31032 | -5/Garrison | Lost 4 parts (1p1n1u1w) 31080 | -5/Garrison | Garrison Relay disabled 31201 | -5/Garrison | Triggered checkpoint 31250 | -5/Garrison | Found embedded Infiltrators 31291 | -5/Garrison | Rewired B-86 Titan 31307 | -5/Garrison | Rewired B-90 Cyclops 31380 | -5/Garrison | Found Hvy. Reflective Plating 31543 | -5/Garrison | Triggered checkpoint 31623 | -5/Garrison | Triggered checkpoint 31816 | -5/Garrison | Discovered new exit (range 9) 32051 | -5/Garrison | Triggered checkpoint 32183 | -5/Garrison | Triggered checkpoint 32189 | -5/Garrison | Garrison Relay disabled 32254 | -5/Garrison | Discovered new exit (range 2) 32836 | -5/Garrison | Entered Factory 32836 | -4/Factory | Accompanied by 8 allies 32836 | -4/Factory | Evolved 2 slots: Utility x1, Weapon x1 33086 | -4/Factory | First assault squad dispatched 33255 | -4/Factory | High security lockdown imminent 33269 | -4/Factory | Lost 3 allies 33335 | -4/Factory | High security lockdown engaged 33357 | -4/Factory | Lost 6 allies 33384 | -4/Factory | Lost 3 parts (1u2w) 33419 | -4/Factory | Assimilated ARC 7a with formatsys_deep 33472 | -4/Factory | Identified Exp. Core Analyzer 33495 | -4/Factory | Lost 5 parts (2n1u2w) 33550 | -4/Factory | Discovered new exit (range 8) 33555 | -4/Factory | Entered Research 33555 | -3/Research | Evolved 2 slots: Propulsion x2 33559 | -3/Research | Identified exit to DSF 33559 | -3/Research | Entered DSF 33594 | -3/DSF | Additional patrols routed to DSF 33672 | -3/DSF | Discovered new exit (range 16) 33698 | -3/DSF | Entered Research 33698 | -2/Research | Evolved 2 slots: Propulsion x2 33731 | -2/Research | Discovered new exit (range 23) 33767 | -2/Research | Discovered new exit (range 18) 33815 | -2/Research | Spotted B-90 Cyclops 33870 | -2/Research | Entered Access 33870 | -1/Access | Evolved 2 slots: Utility x2 34047 | -1/Access | Build established: Scavenger-Mutant 34047 | -1/Access | Garrison activated, responded to threat 34241 | -1/Access | Allied Derelicts emerged from ambush trap array 34375 | -1/Access | Spotted B-99 Colossus 34376 | -1/Access | Spotted B-99 Colossus 34427 | -1/Access | System corruption reached 10% 34441 | -1/Access | Lost 3 parts (2u1w) 34492 | -1/Access | Core integrity fell below 50% 34495 | -1/Access | Discovered new exit (range 5) 34497 | *** | Escaped! Last Messages --------------- 34481_ Hvy. Armored Exoskeleton destroyed. 34483_ Penetrated by Slug. 34483_ Slug penetrates Main Access Shell. 34487_ System corrupted: Energy discharge (-34). 34490_ M-28 Smith repairs P-80 Master. 34491_ Penetrated by Slug. 34491_ Slug penetrates Main Access Shell. 34491_ Slug penetrates Sealed Heavy Doors. 34491_ Penetrated by Slug. 34491_ Slug penetrates Main Access Shell. 34491_ Penetrated by Slug. 34491_ Slug penetrates Main Access Shell. 34492_ M-28 Smith repairs P-80 Master Imp. Antigrav System. 34495_ EXIT=FOUND 34495_ Penetrated by Slug. 34495_ Exp. Core Analyzer destroyed. 34495_ Penetrated by Slug. 34495_ Slug penetrates Main Access Shell. 34495_ Penetrated by Slug. 34495_ Slug penetrates Main Access Shell. Map ----- +----------------------------------------------------+ | # #????# " # #?????????????????????? | | # #????# """ # #?????????????????????? | | # #????# """ # #?????????????????????? | | # #????# " # #?????????????????????? | | # #????# # #?????????????????????? | | # #?#### % # #?????????????????????? | | # #?# / ![ + #?????????????????????? | | # #?# ## ![ # #?????????????????????? | | #?# ## [! # #?????????????????????? | | #?# ############### ####??????????????????? | | #?# #??????????# #??????????????????? | | ## ##?# #??????????# % #??????????????????? | | ?# #?##/#####??????# #??????????????????? | | ## ### !=! #??????# #??????????????????? | | # !=! #??????# #??????????????????? | | % # ==! #??????# % #??????????????????? | | /% #??????# %%% #??????????????????? | | # #??????#"" """""""#??????????????????? | | # #????????" "?????????????????????????? | | # #############????" "?????????????????????????? | | # # #??#"" """""""#??????????????????? | | # # % #??# p #??????????????????? | | # # #??#% p""""" #??????????????????? | | # # #??# " "?????????????????????? | | # # #??# " "" "????##???????????????? | | # ##/####+#####??# " "@ "????# ??????????????? | | # #??????# " "????# ??????????????# | | # #??????# """"""????# ?????????????# | | # #??????# ??????????# * ?????????????# | | ######+#+##+#??????# ??????????# ????????????# | | ???????????????????""""""""""""?# """"?????????# | | ???????????????????#"" #?# """"??????????# | | ???????????????????#"" #?# """"??????????? | | ???????????????????#"" #?? ""???????????? | | ???????????????????#T #?? ???????????? | | ???????????????????#"" #??? ????????????? | | #####??????????????#"" #??? ????????????? | | ################"" #####+############## | | T | | "" | | ###+#################################### #### | | #+###? ??????????????????????????????????# #??? | | ?? ??????????????????????????????????# #??? | | # ?????????????????????????????????# #??? | | # ?????????????????????????????????# #??? | | # ???????????????????????#######??# #??? | | # ???????????????????????# ?# #??? | | # ! ??????????????????????# ?# #??? | | # ??????????????????????# # #??? | | " # ?????????????????????# # #??? | +----------------------------------------------------+ Best States ------------- Heat Dissipation 74 Coolant Potential 65 Energy Generation 35 Energy Capacity 390 Matter Stores 300 Matter Capacity 300 Sight Range 23 Robot Scan Range 20 Terrain Scan Density 10 Jamming Range 12 Armor Coverage 625 Resistance: KI 30 Resistance: TH 25 Phase Shifting 10 Evasion (%) 65 Targeting Accuracy 12 Core Analysis 8 Recoil Reduction 4 Offensive Hacking 10 Relay Coupler Types 2 Relay Coupler Value 41 Authchip Count 15 Item Schematics ----------------- None Robot Schematics ------------------ None Fabricated ------------ Nothing Repaired ---------- Imp. Assault Rifle | 54% | -9/Materials Med. Reactive Plating | 10% | -6/Factory Alien Tech Used ----------------- None Achievements -------------- None Challenges ------------ None Game ------ Seed AssembledStorageMount Manual? 0 Play Time 02:58:41 Cumulative 489.6 hours Start 2025.06.28 @ 17:48:30 End 2025.06.28 @ 21:58:00 Sessions 4 Manual Loads 0 Difficulty Rogue Special Mode None Game No. 219 Rogue 219 Adventurer 0 Explorer 0 Win Type 0 Total 23 Types 7/4/6/2/1/0/1/1/0/1 Lore% 89 Gallery% 85 Achievement% 80 Wizard Run 0 Options --------- Layout 0 ASCII 0 Keyboard 0 Movement Arrows Keybinds 0 Fullscreen 2 Font 18/SmallcapsGlow Map View 76x50 Zoom Use 0% Tactical HUD 1 Map Filters NONE Filters NONE Steam 1 RUN: 854516b3-87d7-4093-9ff8-41b71a6b5106